[Event "Titled Tuesday Blitz May 16 Late 2023"]
[White "Kuznetsov, Felix"]
[Black "Musovic, Armin"]
[WhiteFideId "34147990"]
[BlackFideId "939935"]
[WhiteElo "2281"]
[BlackElo "2322"]
[Result "1-0"]
[Round "07"]
[TimeControl "180+2"]
[Date "2023.05.16"]
[WhiteClock "0:01:06"]
[BlackClock "0:01:06"]

1. e4 {[%clk 0:03:00]}  c6 {[%clk 0:03:00]} 2. d4 {[%clk 0:03:01]}  d5 {[%clk 0:03:00]} 3. exd5 {[%clk 0:03:02]}  cxd5 {[%clk 0:03:01]} 4. Bf4 {[%clk 0:03:01]}  Nc6 {[%clk 0:03:01]} 5. c3 {[%clk 0:03:01]}  Nf6 {[%clk 0:03:01]} 6. Nd2 {[%clk 0:03:01]}  g6 {[%clk 0:03:02]} 7. Bd3 {[%clk 0:03:00]}  Bg7 {[%clk 0:03:02]} 8. Ngf3 {[%clk 0:03:01]}  O-O {[%clk 0:03:03]} 9. O-O {[%clk 0:03:01]}  Re8 {[%clk 0:03:04]} 10. Re1 {[%clk 0:03:00]}  Nd7 {[%clk 0:03:04]} 11. Bg3 {[%clk 0:02:52]}  f6 {[%clk 0:03:00]} 12. c4 {[%clk 0:02:51]}  e6 {[%clk 0:02:54]} 13. cxd5 {[%clk 0:02:40]}  exd5 {[%clk 0:02:54]} 14. Rxe8+ {[%clk 0:02:32]}  Qxe8 {[%clk 0:02:55]} 15. Qb3 {[%clk 0:02:32]}  Qf7 {[%clk 0:02:48]} 16. Nc4 {[%clk 0:02:20]}  Nxd4 {[%clk 0:02:26]} 17. Nxd4 {[%clk 0:02:10]}  Nc5 {[%clk 0:02:26]} 18. Qc3 {[%clk 0:02:00]}  Nxd3 {[%clk 0:02:17]} 19. Nd6 {[%clk 0:02:00]}  Qd7 {[%clk 0:01:55]} 20. Qxd3 {[%clk 0:02:00]}  b6 {[%clk 0:01:52]} 21. Nxc8 {[%clk 0:01:58]}  Rxc8 {[%clk 0:01:52]} 22. Rd1 {[%clk 0:01:57]}  f5 {[%clk 0:01:47]} 23. h4 {[%clk 0:01:39]}  Qa4 {[%clk 0:01:35]} 24. Ne6 {[%clk 0:01:32]}  Bxb2 {[%clk 0:01:26]} 25. Qxd5 {[%clk 0:01:29]}  Qc6 {[%clk 0:01:16]} 26. Qb3 {[%clk 0:01:15]}  Qc2 {[%clk 0:01:12]} 27. Rd8+ {[%clk 0:01:12]}  Kf7 {[%clk 0:01:07]} 28. Ng5+ {[%clk 0:01:05]}  Ke7 {[%clk 0:01:06]} 29. Qe6+ {[%clk 0:01:05]}  Kxd8 {[%clk 0:01:06]} 30. Nf7# {[%clk 0:01:06]} 1-0


[Site "https://www.chess.com"]

[Event "Titled Tuesday Blitz May 16 Late 2023"]
[White "Trost, Edvin"]
[Black "Guz, Ari"]
[WhiteFideId "1729519"]
[BlackFideId "2825759"]
[WhiteElo "2368"]
[BlackElo "2205"]
[Result "0-1"]
[Round "07"]
[TimeControl "180+2"]
[Date "2023.05.16"]
[WhiteClock "0:00:00"]
[BlackClock "0:00:19"]

1. d4 {[%clk 0:03:00]}  d5 {[%clk 0:02:56]} 2. c4 {[%clk 0:02:59]}  e6 {[%clk 0:02:56]} 3. Nf3 {[%clk 0:02:59]}  a6 {[%clk 0:02:57]} 4. Qa4+ {[%clk 0:02:42]}  Nd7 {[%clk 0:02:36]} 5. Nc3 {[%clk 0:02:37]}  dxc4 {[%clk 0:02:35]} 6. e4 {[%clk 0:02:34]}  c6 {[%clk 0:02:27]} 7. Qxc4 {[%clk 0:02:33]}  Qc7 {[%clk 0:02:20]} 8. Be3 {[%clk 0:02:30]}  b5 {[%clk 0:02:19]} 9. Qe2 {[%clk 0:02:26]}  Ngf6 {[%clk 0:02:18]} 10. Nd2 {[%clk 0:02:22]}  Bb7 {[%clk 0:02:13]} 11. g3 {[%clk 0:02:15]}  c5 {[%clk 0:02:13]} 12. Bg2 {[%clk 0:02:11]}  cxd4 {[%clk 0:02:04]} 13. Bxd4 {[%clk 0:02:12]}  Bc5 {[%clk 0:02:04]} 14. Nb3 {[%clk 0:02:06]}  Bxd4 {[%clk 0:02:02]} 15. Nxd4 {[%clk 0:02:07]}  O-O {[%clk 0:02:02]} 16. O-O {[%clk 0:02:06]}  Ne5 {[%clk 0:01:55]} 17. Rac1 {[%clk 0:02:06]}  Qb6 {[%clk 0:01:52]} 18. Nb3 {[%clk 0:02:01]}  Rfd8 {[%clk 0:01:48]} 19. Rfd1 {[%clk 0:02:01]}  h6 {[%clk 0:01:44]} 20. h3 {[%clk 0:02:00]}  Nc4 {[%clk 0:01:38]} 21. Kh2 {[%clk 0:01:54]}  Rxd1 {[%clk 0:01:36]} 22. Rxd1 {[%clk 0:01:55]}  Rd8 {[%clk 0:01:36]} 23. Rxd8+ {[%clk 0:01:50]}  Qxd8 {[%clk 0:01:36]} 24. Nc5 {[%clk 0:01:50]}  Bc8 {[%clk 0:01:26]} 25. e5 {[%clk 0:01:43]}  Nd7 {[%clk 0:01:11]} 26. Nxd7 {[%clk 0:01:35]}  Qxd7 {[%clk 0:01:11]} 27. b3 {[%clk 0:01:34]}  Nb6 {[%clk 0:01:06]} 28. Ne4 {[%clk 0:01:32]}  Qd4 {[%clk 0:01:02]} 29. Nd6 {[%clk 0:01:31]}  Bd7 {[%clk 0:00:58]} 30. f4 {[%clk 0:01:26]}  Nd5 {[%clk 0:00:54]} 31. Qh5 {[%clk 0:01:00]}  g6 {[%clk 0:00:51]} 32. Qh4 {[%clk 0:00:58]}  Qf2 {[%clk 0:00:21]} 33. Qd8+ {[%clk 0:00:56]}  Kg7 {[%clk 0:00:13]} 34. Qxd7 {[%clk 0:00:55]}  Ne3 {[%clk 0:00:14]} 35. Qxf7+ {[%clk 0:00:55]}  Kh8 {[%clk 0:00:14]} 36. Qf8+ {[%clk 0:00:54]}  Kh7 {[%clk 0:00:14]} 37. Qe7+ {[%clk 0:00:55]}  Kg8 {[%clk 0:00:12]} 38. Qe8+ {[%clk 0:00:56]}  Kh7 {[%clk 0:00:12]} 39. Qd7+ {[%clk 0:00:57]}  Kg8 {[%clk 0:00:12]} 40. Qd8+ {[%clk 0:00:58]}  Kh7 {[%clk 0:00:12]} 41. Qc7+ {[%clk 0:00:58]}  Kg8 {[%clk 0:00:12]} 42. Qc8+ {[%clk 0:00:59]}  Kh7 {[%clk 0:00:12]} 43. Qb7+ {[%clk 0:00:59]}  Kg8 {[%clk 0:00:13]} 44. Qb8+ {[%clk 0:00:59]}  Kh7 {[%clk 0:00:13]} 45. Qa7+ {[%clk 0:01:00]}  Kg8 {[%clk 0:00:13]} 46. Qa8+ {[%clk 0:01:00]}  Kh7 {[%clk 0:00:13]} 47. Qa7+ {[%clk 0:00:09]}  Kg8 {[%clk 0:00:13]} 48. Qb8+ {[%clk 0:00:10]}  Kh7 {[%clk 0:00:14]} 49. Qc7+ {[%clk 0:00:11]}  Kg8 {[%clk 0:00:15]} 50. Qc8+ {[%clk 0:00:11]}  Kh7 {[%clk 0:00:15]} 51. Qd7+ {[%clk 0:00:12]}  Kg8 {[%clk 0:00:16]} 52. Qxe6+ {[%clk 0:00:12]}  Kh7 {[%clk 0:00:16]} 53. Qe7+ {[%clk 0:00:11]}  Kg8 {[%clk 0:00:17]} 54. Qe8+ {[%clk 0:00:11]}  Kh7 {[%clk 0:00:17]} 55. Qf7+ {[%clk 0:00:11]}  Kh8 {[%clk 0:00:18]} 56. Qf8+ {[%clk 0:00:10]}  Kh7 {[%clk 0:00:18]} 57. Qe7+ {[%clk 0:00:10]}  Kg8 {[%clk 0:00:18]} 58. Qd8+ {[%clk 0:00:10]}  Kh7 {[%clk 0:00:19]} 59. Qd7+ {[%clk 0:00:10]}  Kg8 {[%clk 0:00:19]} 60. Qc8+ {[%clk 0:00:09]}  Kh7 {[%clk 0:00:19]} 61. Qc7+ {[%clk 0:00:09]}  Kg8 {[%clk 0:00:20]} 62. Qc8+ {[%clk 0:00:08]}  Kh7 {[%clk 0:00:20]} 63. Qb7+ {[%clk 0:00:08]}  Kg8 {[%clk 0:00:20]} 64. Qa8+ {[%clk 0:00:02]}  Kh7 {[%clk 0:00:21]} 65. Qa7+ {[%clk 0:00:03]}  Kg8 {[%clk 0:00:21]} 66. Qb8+ {[%clk 0:00:03]}  Kh7 {[%clk 0:00:21]} 67. Qb7+ {[%clk 0:00:04]}  Kg8 {[%clk 0:00:22]} 68. Qb8+ {[%clk 0:00:02]}  Kh7 {[%clk 0:00:22]} 69. Qa7+ {[%clk 0:00:03]}  Kg8 {[%clk 0:00:22]} 70. Qxe3 {[%clk 0:00:03]}  Qxe3 {[%clk 0:00:22]} 71. Ne4 {[%clk 0:00:02]}  h5 {[%clk 0:00:22]} 72. Nf6+ {[%clk 0:00:01]}  Kg7 {[%clk 0:00:22]} 73. h4 {[%clk 0:00:02]}  Qf2 {[%clk 0:00:22]} 74. Nd7 {[%clk 0:00:01]}  Qxa2 {[%clk 0:00:22]} 75. Nc5 {[%clk 0:00:01]}  Qe2 {[%clk 0:00:23]} 76. b4 {[%clk 0:00:01]}  Qc4 {[%clk 0:00:22]} 77. e6 {[%clk 0:00:02]}  Qxb4 {[%clk 0:00:22]} 78. e7 {[%clk 0:00:02]}  Kf7 {[%clk 0:00:22]} 79. Nb7 {[%clk 0:00:01]}  Kxe7 {[%clk 0:00:21]} 80. Kh3 {[%clk 0:00:02]}  Qc3 {[%clk 0:00:18]} 81. Kh2 {[%clk 0:00:00]}  b4 {[%clk 0:00:19]} 0-1


[Site "https://www.chess.com"]

[Event "Titled Tuesday Blitz May 16 Late 2023"]
[White "Ivanisevic, Ivan"]
[Black "Taboas Rodriguez, Daniel"]
[WhiteFideId "912417"]
[BlackFideId "2208466"]
[WhiteElo "2592"]
[BlackElo "2365"]
[Result "0-1"]
[Round "07"]
[TimeControl "180+2"]
[Date "2023.05.16"]
[WhiteClock "0:00:00"]
[BlackClock "0:00:30"]

1. d4 {[%clk 0:02:48]}  Nf6 {[%clk 0:02:59]} 2. Nf3 {[%clk 0:02:48]}  g6 {[%clk 0:02:59]} 3. Bf4 {[%clk 0:02:45]}  Bg7 {[%clk 0:02:59]} 4. Nbd2 {[%clk 0:02:45]}  O-O {[%clk 0:02:59]} 5. c3 {[%clk 0:02:45]}  b6 {[%clk 0:02:58]} 6. e4 {[%clk 0:02:45]}  Bb7 {[%clk 0:02:58]} 7. Qc2 {[%clk 0:02:43]}  c5 {[%clk 0:02:58]} 8. dxc5 {[%clk 0:02:12]}  bxc5 {[%clk 0:02:57]} 9. Be2 {[%clk 0:02:13]}  Nc6 {[%clk 0:02:51]} 10. O-O {[%clk 0:02:13]}  d5 {[%clk 0:02:25]} 11. exd5 {[%clk 0:02:08]}  Nxd5 {[%clk 0:02:26]} 12. Bg3 {[%clk 0:02:07]}  Bh6 {[%clk 0:02:22]} 13. Rad1 {[%clk 0:02:03]}  Nf4 {[%clk 0:02:22]} 14. Bb5 {[%clk 0:01:39]}  Qb6 {[%clk 0:02:21]} 15. a4 {[%clk 0:01:23]}  a6 {[%clk 0:02:18]} 16. Nc4 {[%clk 0:01:12]}  Qc7 {[%clk 0:02:18]} 17. Bxc6 {[%clk 0:01:08]}  Qxc6 {[%clk 0:02:16]} 18. Nce5 {[%clk 0:01:04]}  Qe6 {[%clk 0:02:08]} 19. Rfe1 {[%clk 0:01:02]}  Rfd8 {[%clk 0:01:41]} 20. Rf1 {[%clk 0:00:33]}  Rd5 {[%clk 0:01:32]} 21. Rde1 {[%clk 0:00:28]}  Rad8 {[%clk 0:01:19]} 22. c4 {[%clk 0:00:25]}  Rd2 {[%clk 0:01:01]} 23. Nxd2 {[%clk 0:00:20]}  Rxd2 {[%clk 0:01:01]} 24. Qc3 {[%clk 0:00:19]}  Ne2+ {[%clk 0:00:53]} 25. Rxe2 {[%clk 0:00:18]}  Rxe2 {[%clk 0:00:54]} 26. Rd1 {[%clk 0:00:14]}  f6 {[%clk 0:00:47]} 27. Nd3 {[%clk 0:00:14]}  Qe4 {[%clk 0:00:41]} 28. f3 {[%clk 0:00:13]}  Be3+ {[%clk 0:00:40]} 29. Kh1 {[%clk 0:00:12]}  Qxf3 {[%clk 0:00:39]} 30. Nf4 {[%clk 0:00:09]}  Rxg2 {[%clk 0:00:33]} 31. Rd8+ {[%clk 0:00:00]}  Kf7 {[%clk 0:00:30]} 0-1


[Site "https://www.chess.com"]

[Event "Titled Tuesday Blitz May 16 Late 2023"]
[White "Kokoszczynski, Jan"]
[Black "Bartel, Mateusz"]
[WhiteFideId "1174460"]
[BlackFideId "1112635"]
[WhiteElo "2139"]
[BlackElo "2521"]
[Result "1-0"]
[Round "07"]
[TimeControl "180+2"]
[Date "2023.05.16"]
[WhiteClock "0:00:12"]
[BlackClock "0:00:10"]

1. d4 {[%clk 0:03:00]}  Nf6 {[%clk 0:02:58]} 2. c4 {[%clk 0:03:01]}  Nc6 {[%clk 0:02:54]} 3. Nf3 {[%clk 0:02:59]}  e6 {[%clk 0:02:52]} 4. g3 {[%clk 0:02:58]}  Bb4+ {[%clk 0:02:45]} 5. Bd2 {[%clk 0:02:57]}  Qe7 {[%clk 0:02:44]} 6. Bg2 {[%clk 0:02:54]}  Bxd2+ {[%clk 0:02:44]} 7. Qxd2 {[%clk 0:02:53]}  Ne4 {[%clk 0:02:42]} 8. Qc2 {[%clk 0:02:22]}  Qb4+ {[%clk 0:02:23]} 9. Kf1 {[%clk 0:02:01]}  d5 {[%clk 0:02:22]} 10. cxd5 {[%clk 0:01:58]}  exd5 {[%clk 0:02:21]} 11. Nc3 {[%clk 0:01:52]}  Nxc3 {[%clk 0:02:13]} 12. Qxc3 {[%clk 0:01:45]}  Qxc3 {[%clk 0:01:58]} 13. bxc3 {[%clk 0:01:46]}  Na5 {[%clk 0:01:53]} 14. Nd2 {[%clk 0:01:33]}  c6 {[%clk 0:01:48]} 15. e4 {[%clk 0:01:33]}  dxe4 {[%clk 0:01:44]} 16. Bxe4 {[%clk 0:01:34]}  Be6 {[%clk 0:01:41]} 17. Kg2 {[%clk 0:01:22]}  O-O-O {[%clk 0:01:41]} 18. Rhe1 {[%clk 0:01:16]}  Kc7 {[%clk 0:01:30]} 19. Bf3 {[%clk 0:01:00]}  b6 {[%clk 0:01:23]} 20. Nb3 {[%clk 0:00:26]}  Nc4 {[%clk 0:01:17]} 21. Re2 {[%clk 0:00:24]}  g5 {[%clk 0:01:10]} 22. Rae1 {[%clk 0:00:18]}  h5 {[%clk 0:01:08]} 23. Be4 {[%clk 0:00:14]}  h4 {[%clk 0:01:07]} 24. Nc1 {[%clk 0:00:13]}  Nd6 {[%clk 0:01:02]} 25. f3 {[%clk 0:00:07]}  hxg3 {[%clk 0:00:58]} 26. hxg3 {[%clk 0:00:07]}  Rh3 {[%clk 0:00:52]} 27. Rh1 {[%clk 0:00:08]}  Rxh1 {[%clk 0:00:50]} 28. Kxh1 {[%clk 0:00:09]}  Nb5 {[%clk 0:00:46]} 29. Rc2 {[%clk 0:00:06]}  Na3 {[%clk 0:00:21]} 30. Re2 {[%clk 0:00:06]}  a5 {[%clk 0:00:20]} 31. Kg2 {[%clk 0:00:06]}  Bc4 {[%clk 0:00:18]} 32. Rd2 {[%clk 0:00:06]}  Nb5 {[%clk 0:00:17]} 33. Rc2 {[%clk 0:00:05]}  a4 {[%clk 0:00:16]} 34. Bd3 {[%clk 0:00:05]}  Na3 {[%clk 0:00:15]} 35. Re2 {[%clk 0:00:04]}  b5 {[%clk 0:00:16]} 36. Bxc4 {[%clk 0:00:04]}  Nxc4 {[%clk 0:00:15]} 37. Nd3 {[%clk 0:00:05]}  Kd6 {[%clk 0:00:13]} 38. Nc5 {[%clk 0:00:04]}  Rb8 {[%clk 0:00:13]} 39. f4 {[%clk 0:00:02]}  gxf4 {[%clk 0:00:12]} 40. gxf4 {[%clk 0:00:03]}  b4 {[%clk 0:00:12]} 41. cxb4 {[%clk 0:00:03]}  Rxb4 {[%clk 0:00:13]} 42. Re8 {[%clk 0:00:03]}  Ne3+ {[%clk 0:00:11]} 43. Rxe3 {[%clk 0:00:03]}  Rxd4 {[%clk 0:00:10]} 44. Nb7+ {[%clk 0:00:02]}  Kc7 {[%clk 0:00:10]} 45. Nc5 {[%clk 0:00:02]}  Rxf4 {[%clk 0:00:10]} 46. Nd3 {[%clk 0:00:01]}  Rd4 {[%clk 0:00:09]} 47. Kf2 {[%clk 0:00:02]}  Kb6 {[%clk 0:00:09]} 48. Ke2 {[%clk 0:00:02]}  Kb5 {[%clk 0:00:09]} 49. Rf3 {[%clk 0:00:01]}  Rc4 {[%clk 0:00:09]} 50. Kd2 {[%clk 0:00:01]}  Rh4 {[%clk 0:00:08]} 51. Rf5+ {[%clk 0:00:01]}  Kb6 {[%clk 0:00:08]} 52. Rxf7 {[%clk 0:00:02]}  Rh2+ {[%clk 0:00:08]} 53. Rf2 {[%clk 0:00:02]}  Rh1 {[%clk 0:00:08]} 54. Kc3 {[%clk 0:00:02]}  c5 {[%clk 0:00:09]} 55. Rf6+ {[%clk 0:00:02]}  Kb5 {[%clk 0:00:09]} 56. Rf5 {[%clk 0:00:03]}  Rh2 {[%clk 0:00:08]} 57. Rxc5+ {[%clk 0:00:03]}  Kb6 {[%clk 0:00:08]} 58. a3 {[%clk 0:00:03]}  Ra2 {[%clk 0:00:07]} 59. Kb4 {[%clk 0:00:03]}  Rd2 {[%clk 0:00:07]} 60. Rb5+ {[%clk 0:00:03]}  Kc6 {[%clk 0:00:07]} 61. Ne5+ {[%clk 0:00:03]}  Kc7 {[%clk 0:00:08]} 62. Nc4 {[%clk 0:00:04]}  Rd4 {[%clk 0:00:08]} 63. Rc5+ {[%clk 0:00:05]}  Kb7 {[%clk 0:00:08]} 64. Kxa4 {[%clk 0:00:05]}  Ka6 {[%clk 0:00:08]} 65. Kb4 {[%clk 0:00:05]}  Rh4 {[%clk 0:00:09]} 66. Rf5 {[%clk 0:00:05]}  Rh1 {[%clk 0:00:09]} 67. Rf6+ {[%clk 0:00:06]}  Ka7 {[%clk 0:00:10]} 68. a4 {[%clk 0:00:06]}  Rb1+ {[%clk 0:00:09]} 69. Kc5 {[%clk 0:00:07]}  Rc1 {[%clk 0:00:10]} 70. a5 {[%clk 0:00:07]}  Kb7 {[%clk 0:00:10]} 71. Rf7+ {[%clk 0:00:07]}  Ka6 {[%clk 0:00:11]} 72. Rf6+ {[%clk 0:00:08]}  Kb7 {[%clk 0:00:11]} 73. Rb6+ {[%clk 0:00:08]}  Ka7 {[%clk 0:00:11]} 74. Kb5 {[%clk 0:00:08]}  Rb1+ {[%clk 0:00:11]} 75. Kc5 {[%clk 0:00:09]}  Rc1 {[%clk 0:00:12]} 76. Rc6 {[%clk 0:00:09]}  Kb7 {[%clk 0:00:12]} 77. Rg6 {[%clk 0:00:09]}  Ka7 {[%clk 0:00:12]} 78. Rg7+ {[%clk 0:00:09]}  Ka6 {[%clk 0:00:13]} 79. Rg6+ {[%clk 0:00:09]}  Ka7 {[%clk 0:00:13]} 80. Kb4 {[%clk 0:00:09]}  Rb1+ {[%clk 0:00:12]} 81. Ka4 {[%clk 0:00:10]}  Ra1+ {[%clk 0:00:12]} 82. Na3 {[%clk 0:00:10]}  Kb7 {[%clk 0:00:12]} 83. Kb4 {[%clk 0:00:10]}  Ka7 {[%clk 0:00:12]} 84. Rf6 {[%clk 0:00:10]}  Kb7 {[%clk 0:00:13]} 85. a6+ {[%clk 0:00:10]}  Ka8 {[%clk 0:00:12]} 86. Nb5 {[%clk 0:00:10]}  Rb1+ {[%clk 0:00:12]} 87. Kc5 {[%clk 0:00:11]}  Rc1+ {[%clk 0:00:11]} 88. Kb6 {[%clk 0:00:11]}  Rc8 {[%clk 0:00:12]} 89. Nc7+ {[%clk 0:00:11]}  Kb8 {[%clk 0:00:10]} 90. a7# {[%clk 0:00:12]} 1-0


[Site "https://www.chess.com"]

[Event "Titled Tuesday Blitz May 16 Late 2023"]
[White "Weetik, Vjacheslav"]
[Black "WindWhistler11"]
[WhiteFideId "4153472"]
[WhiteElo "2469"]
[BlackElo "2528"]
[Result "1-0"]
[Round "07"]
[TimeControl "180+2"]
[Date "2023.05.16"]
[WhiteClock "0:00:04"]
[BlackClock "0:00:00"]

1. d4 {[%clk 0:02:59]}  Nf6 {[%clk 0:02:54]} 2. c4 {[%clk 0:02:56]}  e6 {[%clk 0:02:54]} 3. g3 {[%clk 0:02:56]}  c5 {[%clk 0:02:42]} 4. d5 {[%clk 0:02:56]}  exd5 {[%clk 0:02:42]} 5. cxd5 {[%clk 0:02:56]}  Bd6 {[%clk 0:02:42]} 6. Nc3 {[%clk 0:02:57]}  O-O {[%clk 0:02:43]} 7. Nf3 {[%clk 0:02:54]}  Re8 {[%clk 0:02:43]} 8. Nd2 {[%clk 0:02:49]}  Bf8 {[%clk 0:02:40]} 9. Bg2 {[%clk 0:02:46]}  d6 {[%clk 0:02:40]} 10. O-O {[%clk 0:02:43]}  b6 {[%clk 0:02:37]} 11. a4 {[%clk 0:02:40]}  Ba6 {[%clk 0:02:36]} 12. Nb5 {[%clk 0:02:37]}  Qd7 {[%clk 0:02:29]} 13. Nc3 {[%clk 0:02:17]}  Qg4 {[%clk 0:02:12]} 14. Re1 {[%clk 0:02:01]}  Nbd7 {[%clk 0:02:04]} 15. Nb5 {[%clk 0:01:50]}  Bxb5 {[%clk 0:01:45]} 16. axb5 {[%clk 0:01:49]}  Qh5 {[%clk 0:01:33]} 17. Nc4 {[%clk 0:01:42]}  Ne5 {[%clk 0:01:24]} 18. Nxe5 {[%clk 0:01:40]}  Qxe5 {[%clk 0:01:14]} 19. Qb3 {[%clk 0:01:25]}  g5 {[%clk 0:01:10]} 20. Bd2 {[%clk 0:01:23]}  Ne4 {[%clk 0:01:05]} 21. Bxe4 {[%clk 0:01:16]}  Qxe4 {[%clk 0:01:05]} 22. Bxg5 {[%clk 0:01:17]}  Re5 {[%clk 0:01:01]} 23. Bf4 {[%clk 0:01:02]}  Qxd5 {[%clk 0:00:58]} 24. Qc2 {[%clk 0:00:49]}  Re4 {[%clk 0:00:55]} 25. Rad1 {[%clk 0:00:46]}  Qe6 {[%clk 0:00:34]} 26. Bxd6 {[%clk 0:00:34]}  Rc4 {[%clk 0:00:34]} 27. Qd2 {[%clk 0:00:34]}  Bg7 {[%clk 0:00:26]} 28. Bf4 {[%clk 0:00:20]}  Rb4 {[%clk 0:00:24]} 29. Qd3 {[%clk 0:00:11]}  Rxb2 {[%clk 0:00:18]} 30. Qf3 {[%clk 0:00:11]}  Re8 {[%clk 0:00:18]} 31. Rd6 {[%clk 0:00:08]}  Qf5 {[%clk 0:00:16]} 32. Rd5 {[%clk 0:00:08]}  Qe4 {[%clk 0:00:16]} 33. Qxe4 {[%clk 0:00:03]}  Rxe4 {[%clk 0:00:16]} 34. Rd8+ {[%clk 0:00:04]}  Bf8 {[%clk 0:00:00]} 35. Bh6 {[%clk 0:00:04]} 1-0


[Site "https://www.chess.com"]

[Event "Titled Tuesday Blitz May 16 Late 2023"]
[White "ArtemDyachuk"]
[Black "Bryakin, Mikhail"]
[BlackFideId "4165314"]
[WhiteElo "2521"]
[BlackElo "2467"]
[Result "1-0"]
[Round "07"]
[TimeControl "180+2"]
[Date "2023.05.16"]
[WhiteClock "0:00:06"]
[BlackClock "0:00:33"]

1. Nf3 {[%clk 0:03:00]}  Nf6 {[%clk 0:02:57]} 2. c4 {[%clk 0:03:00]}  g6 {[%clk 0:02:54]} 3. g3 {[%clk 0:03:00]}  Bg7 {[%clk 0:02:47]} 4. Bg2 {[%clk 0:03:00]}  O-O {[%clk 0:02:48]} 5. O-O {[%clk 0:03:00]}  c6 {[%clk 0:02:48]} 6. d3 {[%clk 0:02:50]}  d5 {[%clk 0:02:48]} 7. Nbd2 {[%clk 0:02:50]}  Nbd7 {[%clk 0:02:47]} 8. Rb1 {[%clk 0:02:50]}  e5 {[%clk 0:02:47]} 9. Qc2 {[%clk 0:02:47]}  Qe7 {[%clk 0:02:46]} 10. b4 {[%clk 0:02:45]}  e4 {[%clk 0:02:46]} 11. dxe4 {[%clk 0:02:43]}  dxe4 {[%clk 0:02:47]} 12. Ng5 {[%clk 0:02:41]}  e3 {[%clk 0:02:47]} 13. Nde4 {[%clk 0:02:38]}  exf2+ {[%clk 0:02:47]} 14. Rxf2 {[%clk 0:02:09]}  Ng4 {[%clk 0:02:46]} 15. Bf4 {[%clk 0:02:09]}  Nde5 {[%clk 0:02:28]} 16. Rff1 {[%clk 0:02:03]}  h6 {[%clk 0:02:25]} 17. Nf3 {[%clk 0:02:02]}  f5 {[%clk 0:02:25]} 18. Nc5 {[%clk 0:01:55]}  g5 {[%clk 0:02:25]} 19. Bd2 {[%clk 0:01:34]}  b6 {[%clk 0:02:17]} 20. Nd3 {[%clk 0:01:28]}  Ng6 {[%clk 0:02:16]} 21. b5 {[%clk 0:01:12]}  Bb7 {[%clk 0:02:11]} 22. c5 {[%clk 0:00:52]}  Rac8 {[%clk 0:01:58]} 23. bxc6 {[%clk 0:00:25]}  Bxc6 {[%clk 0:01:54]} 24. cxb6 {[%clk 0:00:21]}  axb6 {[%clk 0:01:47]} 25. Rxb6 {[%clk 0:00:20]}  Bd5 {[%clk 0:01:43]} 26. Qa4 {[%clk 0:00:14]}  Kh7 {[%clk 0:01:23]} 27. Rxg6 {[%clk 0:00:02]}  Kxg6 {[%clk 0:01:17]} 28. Nh4+ {[%clk 0:00:02]}  gxh4 {[%clk 0:01:16]} 29. Nf4+ {[%clk 0:00:01]}  Kh7 {[%clk 0:01:16]} 30. Bxd5 {[%clk 0:00:01]}  Qxe2 {[%clk 0:01:14]} 31. Nxe2 {[%clk 0:00:01]}  hxg3 {[%clk 0:01:07]} 32. Be6 {[%clk 0:00:01]}  gxh2+ {[%clk 0:01:06]} 33. Kg2 {[%clk 0:00:01]}  Rce8 {[%clk 0:01:04]} 34. Bxf5+ {[%clk 0:00:02]}  Rxf5 {[%clk 0:01:04]} 35. Qxg4 {[%clk 0:00:02]}  Rxe2+ {[%clk 0:01:05]} 36. Qxe2 {[%clk 0:00:01]}  Re5 {[%clk 0:01:00]} 37. Qxe5 {[%clk 0:00:01]}  Bxe5 {[%clk 0:01:01]} 38. Kh1 {[%clk 0:00:01]}  Kg6 {[%clk 0:01:01]} 39. a3 {[%clk 0:00:02]}  Bd4 {[%clk 0:01:02]} 40. a4 {[%clk 0:00:03]}  Bc3 {[%clk 0:01:02]} 41. Bxc3 {[%clk 0:00:03]}  Kh5 {[%clk 0:00:31]} 42. a5 {[%clk 0:00:04]}  Kg4 {[%clk 0:00:31]} 43. a6 {[%clk 0:00:05]}  Kh3 {[%clk 0:00:31]} 44. a7 {[%clk 0:00:06]}  h5 {[%clk 0:00:32]} 45. a8=Q {[%clk 0:00:07]}  h4 {[%clk 0:00:33]} 46. Qg2# {[%clk 0:00:06]} 1-0


[Site "https://www.chess.com"]

[Event "Titled Tuesday Blitz May 16 Late 2023"]
[White "Rodriguez Santiago, Jaime"]
[Black "Domingo Nunez, Ruben"]
[WhiteFideId "3100898"]
[BlackFideId "22245570"]
[WhiteElo "2025"]
[BlackElo "2404"]
[Result "0-1"]
[Round "07"]
[TimeControl "180+2"]
[Date "2023.05.16"]
[WhiteClock "0:02:15"]
[BlackClock "0:02:52"]

1. c4 {[%clk 0:03:00]}  g6 {[%clk 0:02:58]} 2. Nc3 {[%clk 0:02:59]}  Bg7 {[%clk 0:02:59]} 3. g3 {[%clk 0:02:59]}  Nf6 {[%clk 0:02:57]} 4. Bg2 {[%clk 0:03:00]}  d6 {[%clk 0:02:58]} 5. e4 {[%clk 0:02:59]}  h5 {[%clk 0:02:57]} 6. h3 {[%clk 0:02:59]}  c6 {[%clk 0:02:53]} 7. Nge2 {[%clk 0:02:58]}  a6 {[%clk 0:02:54]} 8. d3 {[%clk 0:02:59]}  b5 {[%clk 0:02:55]} 9. cxb5 {[%clk 0:02:46]}  axb5 {[%clk 0:02:56]} 10. e5 {[%clk 0:02:34]}  dxe5 {[%clk 0:02:57]} 11. Nxb5 {[%clk 0:02:30]}  cxb5 {[%clk 0:02:57]} 12. Bxa8 {[%clk 0:02:26]}  Qa5+ {[%clk 0:02:58]} 13. Bd2 {[%clk 0:02:25]}  Qxa8 {[%clk 0:02:59]} 14. O-O {[%clk 0:02:25]}  Bxh3 {[%clk 0:02:59]} 15. f3 {[%clk 0:02:23]}  Bxf1 {[%clk 0:02:58]} 16. Qxf1 {[%clk 0:02:24]}  h4 {[%clk 0:02:57]} 17. Qh3 {[%clk 0:02:24]}  Nbd7 {[%clk 0:02:53]} 18. g4 {[%clk 0:02:15]}  Qd5 {[%clk 0:02:52]} 0-1


[Site "https://www.chess.com"]